Cogmind - Beta 13 @@@ ROGUE MODE // 2024.04.12 @ 10:15:15 Player: SYPIAC Result: Destroyed by R4-SWN(R) with Subdweller Laser Performance ------------- Evolutions (0) 0 Regions Visited (2) 400 Robots Destroyed (13) 65 Value Destroyed (367) 367 Prototype IDs (2) 40 Alien Tech Used (0) 0 Bonus (0) 0 TOTAL SCORE: 872 Bonus ------- None Cogmind --------- Core Integrity 0/250 Matter 169/300 Energy 231/250 System Corruption 5% Temperature Cool (6) Movement Treading (160) Location -10/Subcaves Parts ------- > --- POWER (1) -------- Ion Engine > --- PROPULSION (2) --- Light Treads Light Treads > --- UTILITY (2) ------ Large Storage Unit Subdweller Optics > --- WEAPON (2) ------- Subdweller Laser Assault Rifle > --- INVENTORY (15) --- Light Nuclear Core Wheel Compact Wheel Subdweller Monowheel Subdweller Optics Light Assault Rifle Subdweller Shrapnel Launcher Mining Laser Peak State ------------ > --- POWER ------------ Subdweller Power Source > --- PROPULSION ------- Light Treads Subdweller Monowheel > --- UTILITY ---------- Large Storage Unit Subdweller Optics > --- WEAPON ----------- Light Assault Rifle Light Assault Rifle > --- INVENTORY -------- Ion Engine Ion Engine Light Nuclear Core Light Treads Light Treads Wheel Compact Wheel Mining Laser [Rating: 11] Favorites ----------- Power Ion Engine Engine Ion Engine Propulsion Light Treads Treads Light Treads Leg Aluminum Leg Wheel Compact Wheel Utility Large Storage Unit Device Subdweller Optics Storage Large Storage Unit Weapon Light Assault Rifle Energy Gun Subdweller Laser Ballistic Gun Light Assault Rifle Special Weapon Mining Laser Build | -11 -10 -10 ------- Run | Yrd Mat Sub Slots Evolved . | . . . Power . | . . . Propulsion . | . . . Utility . | . . . Weapon . | . . . Parts Attached 21 | . 9 12 Power 4 | . 2 2 Engine 4 | . 2 2 Core . | . . . Reactor . | . . . Propulsion 7 | . 3 4 Treads 4 | . 2 2 Leg . | . . . Wheel 3 | . 1 2 Hover . | . . . Flight . | . . . Utility 2 | . 1 1 Device 1 | . . 1 Storage 1 | . 1 . Processor . | . . . Hackware . | . . . Protection . | . . . Artifact . | . . . Weapon 8 | . 3 5 Energy Gun 1 | . . 1 Energy Cannon . | . . . Ballistic Gun 5 | . 2 3 Ballistic Cannon . | . . . Launcher . | . . . Special Weapon 2 | . 1 1 Impact Weapon . | . . . Slashing Weapon . | . . . Piercing Weapon . | . . . Special Melee Weapon . | . . . Unidentified Prototypes . | . . . Parts Lost 4 | . 1 3 Power 2 | . 1 1 Propulsion 1 | . . 1 Utility . | . . . Weapon 1 | . . 1 Highest Loss Streak 2 | . 1 2 To Critical Strikes 1 | . . 1 Average Slot Usage (%) 97 | . 97 99 Engine 13 | . 12 14 Treads 15 | . 16 14 Leg 4 | . 6 . Wheel 7 | . 5 13 Device 3 | . . 9 Storage 24 | . 26 18 Ballistic Gun 26 | . 26 24 Naked Turns . | . . . Heaviest Build 33 | 11 33 33 Greatest Support 40 | 20 40 20 Greatest Overweight (x) 2 | . 2 2 Average Overweight (x) . | . . 1 Largest Inventory Capacity 15 | 8 15 15 Average Capacity 14 | 8 14 15 Most Carried 8 | 6 8 8 Average Carried 6 | 6 6 7 Final Capacity 15 | 8 15 15 Final Carried 8 | 6 8 8 Class Distribution -------------------- 100% | Mutant Dominant Class ---------------- Mutant | -10/Materials Mutant | -10/Subcaves Resources | -11 -10 -10 ----------- Run | Yrd Mat Sub Matter Collected 511 | 200 177 134 Remotely . | . . . Salvage Created 498 | . 316 182 Parts 36 | . 22 14 Haulers Intercepted 1 | . 1 . Recyclers Shooed 2 | . 2 . Parts Field Recycled . | . . . Retrieved Matter . | . . . Parts Self-Destructed . | . . . Prevented . | . . . Kills | -11 -10 -10 ------- Run | Yrd Mat Sub Combat Hostiles Destroyed 9 | . 5 4 Guns 9 | . 5 4 Classes Destroyed 6 | . 5 1 Worker 1 | . 1 . Builder 1 | . 1 . Hauler 1 | . 1 . Watcher 1 | . 1 . Grunt 5 | . 5 . Subdweller 4 | . . 4 Best Kill Streak 6 | . 6 2 Combat Bots Only 4 | . 4 2 Max Kills in Single Turn 1 | . 1 1 Gunslinging . | . . . Exploded . | . . . Melee . | . . . Uniques/NPCs Destroyed . | . . . Combat | -11 -10 -10 -------- Run | Yrd Mat Sub Hostile Shots Fired 78 | . 41 37 Missed 15 | . 9 6 Damage Taken 1125 | . 406 719 Core 263 | . 107 156 Absorbed by Shields . | . . . Core Remaining (%) 100 | 100 . . Volleys Fired 70 | . 42 28 Largest 2 | . 2 2 Hottest 120 | . 120 100 Shots Fired 129 | . 77 52 Gun 123 | . 73 50 Cannon . | . . . Launcher . | . . . Special 6 | . 4 2 Kinetic 120 | . 73 47 Thermal 9 | . 4 5 Explosive . | . . . Electromagnetic . | . . . Robot Hit Streak 14 | . 9 14 Robot Miss Streak 4 | . 4 1 Penetration Max . | . . . Secondary Targets 1 | . 1 . Max Gunslinging Chain 1 | . 1 . Shots Hit Robots 95 | . 49 46 Core Hits 30 | . 18 12 Critical Kills . | . . . Critical Parts Destroyed . | . . . Critical Strikes . | . . . Melee Attacks . | . . . Impact . | . . . Slashing . | . . . Piercing . | . . . Sneak Attacks . | . . . Combat Hostiles . | . . . Follow-up Attacks . | . . . Damage Inflicted 1007 | . 575 432 Guns 974 | . 542 432 Cannons . | . . . Explosions . | . . . Melee . | . . . Ramming 9 | . 9 . Kinetic 935 | . 542 393 Thermal 63 | . 24 39 Explosive . | . . . Electromagnetic . | . . . Impact . | . . . Slashing . | . . . Piercing . | . . . Highest Corruption 5 | . 5 5 Average Corruption 4 | . 3 5 Corruption Purged . | . . . Corruption Blocked . | . . . Effects 29 | . 17 12 Message Errors 9 | . 6 3 Matter Fused 6 | . 2 4 Heat Flow Errors 6 | . 3 3 Energy Discharges 2 | . 2 . Data Loss (minor) 2 | . 2 . Data Loss (major) 2 | . 1 1 Misfires 1 | . 1 . Alerts 1 | . . 1 Overload Shots . | . . . Overflow Damage . | . . . Projectiles . | . . . Explosions . | . . . Melee . | . . . Knockbacks . | . . . Impact . | . . . Kinetic . | . . . Secondary . | . . . Self-Inflicted Damage . | . . . Shots . | . . . Rammed . | . . . Targets Rammed 1 | . 1 . Kicked 1 | . 1 . Crushed . | . . . Highest Temperature 260 | . 260 249 Average Temperature 59 | . 53 90 Received Heat Transfer 327 | . 222 105 Siege Activations . | . . . Robots Corrupted . | . . . Combat Hostiles . | . . . Parts Fried . | . . . Impact Corruptions . | . . . Robots Melted . | . . . Combat Hostiles . | . . . Parts Melted . | . . . Heat Transferred 100 | . 50 50 Parts Sabotaged . | . . . Parts Stolen . | . . . Parts Stripped . | . . . Power Chain Reactions . | . . . Alert | -11 -10 -10 ------- Run | Yrd Mat Sub Peak Influence 150 | . 150 . Initial . | . . . Average 44 | . 44 . Maximum Alert Level . | . . . Low Security (%) 100 | 100 100 . Level 1 . | . . . Level 2 . | . . . Level 3 . | . . . Level 4 . | . . . Level 5 . | . . . High Security . | . . . Max Security . | . . . Squads Dispatched 2 | . 2 . Investigation . | . . . Extermination . | . . . Reinforcement 2 | . 2 . Assault . | . . . Garrison . | . . . Intercept . | . . . Searches Triggered . | . . . Construction Impeded . | . . . Haulers Reinforced . | . . . Active Scanning Responses . | . . . Cargo Convoy Interrupts . | . . . Stealth | -11 -10 -10 --------- Run | Yrd Mat Sub Distress Signals 2 | . 2 . Communications Jammed . | . . . Distress Signals . | . . . Times Spotted 14 | . 9 5 Peak Tracking Total 4 | . 4 2 Tactical Retreats . | . . . Traps | -11 -10 -10 ------- Run | Yrd Mat Sub Traps Triggered 3 | . 3 . Indirectly . | . . . Trap Hack Attempts . | . . . Triggered . | . . . Disarmed . | . . . Reprogrammed . | . . . Reused . | . . . Traps Extracted . | . . . Installed . | . . . Triggered . | . . . Machines | -11 -10 -10 ---------- Run | Yrd Mat Sub Machines Disabled . | . . . Max in Single Turn . | . . . Machines Repaired . | . . . Machines Dismantled . | . . . Machines Sabotaged . | . . . Overloaded Fab Kills . | . . . Hacking | -11 -10 -10 --------- Run | Yrd Mat Sub Machines Accessed 3 | . 3 . Terminals 3 | . 3 . Fabricators . | . . . Repair Stations . | . . . Recycling Units . | . . . Scanalyzers . | . . . Garrison Access . | . . . Total Hacks 12 | . 12 . Successful 7 | . 7 . Failed 5 | . 5 . Catastrophic 1 | . 1 . Database Lockouts . | . . . Manual 11 | . 11 . Terminals 12 | . 12 . Fabricators . | . . . Repair Stations . | . . . Recycling Units . | . . . Scanalyzers . | . . . Garrison Access . | . . . Terminal Hacks 2 | . 2 . Prototype ID Bank 1 | . 1 . Zone Layout 1 | . 1 . Fabricator Hacks . | . . . Repair Station Hacks . | . . . Recycling Unit Hacks . | . . . Scanalyzer . | . . . Garrison Access Hacks . | . . . Unauthorized Hacks 5 | . 5 . Terminals 5 | . 5 . Track 2 | . 2 . Botnet 3 | . 3 . Fabricators . | . . . Repair Stations . | . . . Recycling Units . | . . . Scanalyzers . | . . . Garrison Access . | . . . Data Cores Recovered . | . . . Used . | . . . Hacking Detections 3 | . 3 . Full Trace Events . | . . . Feedback Events . | . . . Feedback Blocked . | . . . Robot Schematics Acquired . | . . . Robots Built . | . . . Authchips . | . . . Time . | . . . Total Robot Build Rating . | . . . Part Schematics Acquired . | . . . Parts Built . | . . . Authchips . | . . . Time . | . . . Total Part Build Rating . | . . . Parts Repaired . | . . . Time . | . . . Parts Recycled . | . . . Recycled Matter . | . . . Retrieved Matter . | . . . Retrieved Components . | . . . Parts Scanalyzed . | . . . Part Schematics Acquired . | . . . Parts Damaged . | . . . Bothacking | -11 -10 -10 ------------ Run | Yrd Mat Sub Used RIF Installer . | . . . Robots Hacked . | . . . Non-combat . | . . . Combat . | . . . Robot Hacks Applied . | . . . Relay Couplers Released . | . . . Fabnet Peak Effective % . | . . . Robots Rewired . | . . . Allies Hacked . | . . . Hacks Repelled . | . . . Allies | -11 -10 -10 -------- Run | Yrd Mat Sub Total Allies . | . . . Largest Group . | . . . Highest-Rated Group . | . . . Highest-Rated Ally . | . . . Total Orders . | . . . Ally Attacks . | . . . Total Damage . | . . . Kills . | . . . Allies Corrupted . | . . . Allies Melted . | . . . Intel | -11 -10 -10 ------- Run | Yrd Mat Sub Robot Analysis Total . | . . . Derelict Logs Recovered . | . . . Drone Launches . | . . . Drone Recoveries . | . . . Exploration | -11 -10 -10 ------------- Run | Yrd Mat Sub Turns Passed 1299 | 2 893 404 Spaces Moved 545 | 2 307 236 Core . | . . . Treads 187 | . 182 5 Legs 91 | 2 89 . Wheels 267 | . 36 231 Hover . | . . . Flight . | . . . Fastest Speed 115 | 120 115 120 Average Speed 139 | 120 150 124 Slowest Speed 240 | 120 190 240 Overloaded Moves . | . . . Propulsion Burnouts . | . . . Robots Hopped . | . . . Cave-ins Triggered . | . . . Exploration Rate (%) 23 | 2 48 19 Regions Visited 2 Branch Regions 1 Pre-discovered Areas . | . . . Known Exits Taken . | . . . Unknown Exits Taken 2 | 1 1 . Scrap Searched . | . . . Spaces Dug 2 | . 2 . Terrain Destroyed 2 | . 2 . Melee . | . . . Projectile 2 | . 2 . AOE . | . . . Terrain Rammed . | . . . Walls Destroyed . | . . . Machines Disabled . | . . . Actions | -11 -10 -10 --------- Run | Yrd Mat Sub Total 958 | 1 660 297 Wait 300 | . 289 11 Move 543 | 1 306 236 Hop . | . . . Pick Up 11 | . 7 4 Fast Attach 4 | . 2 2 Attach 3 | . . 3 Detach . | . . . Swap 14 | . 7 7 Drop 12 | . 6 6 Fire 70 | . 42 28 Melee . | . . . Ram . | . . . Kick 1 | . 1 . Crush . | . . . Escape Stasis . | . . . Rewire . | . . . Trap . | . . . Miscellaneous . | . . . Route ------- -11/Scrapyard -10/Materials (discovered 2 exits: [*Mat] / [*Sub]) -10/Subcaves History --------- Turn | Location | Event 1 | -11/Scrapyard | Discovered new exit (range 1) 3 | -11/Scrapyard | Entered Materials 307 | -10/Materials | Build established: Mutant 359 | -10/Materials | Discovered new exit (range 9) 866 | -10/Materials | Discovered new exit (range 5) 896 | -10/Materials | Entered Subcaves 977 | -10/Subcaves | Core integrity fell below 50% 1119 | -10/Subcaves | Ambushed by Subdwellers from Twisted Machinery 1213 | -10/Subcaves | Core integrity fell below 20% 1300 | -10/Subcaves | Destroyed by R4-SWN(R) with Subdweller Laser Last Messages --------------- 01162_ System corrupted: Heat flow error (+119). 01215_ IK-TVK(R) destroyed. 01216_ Critical hit (Destroy). 01216_ Lgt. Treads destroyed. 01220_ Sub. Power Source destroyed. 01221_ 25-F28(R) destroyed. 01226_ Acquired Sub. Optics. 01228_ Dropped Lgt. Assault Rifle. 01229_ Acquired Sub. Laser. 01230_ Acquired 57 matter. 01234_ Dropped Sub. Monowheel. 01240_ Acquired Sub. Shrapnel Launcher. 01241_ Acquired 45 matter. 01245_ System corrupted: Matter fused (-7). 01245_ Acquired 1 matter. 01249_ Dropped Lgt. Assault Rifle. 01250_ Acquired Lgt. Assault Rifle. 01263_ D#&GH91 H|JJVIGUUTIV00JL4URNBL 01279_ System corrupted: Matter fused (-5). 01300_ ET-379(R) destroyed. Map ----- +----------------------------------------------------+ | #?????### & ####????????????????? | | #???????## = ##???????????????? | | ##???????# ## #???????????????? | | #???????# ### #???????????????? | | # #???????## #?# *!& #######???????????????? | | # #???????# ### #?????????????????????? | | ########???????##### ! & #?????????????????????? | | ???????????????????# ###?????????????????????? | | ???????????????????## ##???????????????????????? | | ????????????????????# ##???????????????????????? | | ????????????????????# ##??????????????????????? | | ????????????????????# #??????????????????????? | | ???????????????????## ##??????????????????????? | | ???????????????????# ###???????????????????????? | | ???????????????????## #?####???????????????????? | | ???????????????????# ### #???????????????????? | | ???????????????????## < "#???? #?????????????? | | ???????????????????## < ### #??????????????? | | ???????????????????# " % #???????????????? | | ???????????????????# R #???????????????? | | ???????????????????## << # #??????????????? | | ????????????????????##### ## """ #??????????? | | ???????????????????????#; ### "" ""#?????????? | | ?????????????????????### #?# # #?????????? | | ????????????????????## #?? # "#?????????? | | ?????????????????#### &@##??# "#?????????? | | ?????????????????# R%##???? "##""#?????????? | | ????????????????# &#????? ###???#?????????? | | ????????????????# ??? #???????????????? | | ????????????????## #???????????????? | | ?????????????????# # "??????????????? | | ?????????????????# ## "????????????? | | ???????????????? #? ## ""???????????? | | ??????????????? #? ##?? ?"????????????? | | ?????????????? ## ?###???? ""????????????? | | ????????????? ## #?## ????????? "?????????????? | | ????????????#??# ???## #????????? "?????????????? | | ??????????????? ????##"#????????????????????????? | | ?????????????? ???????##????????????????????????? | | ?????????????# ?????????????????????????????????? | | ?????????????## ?????????????????????????????????? | | ??????????????#??????????????????????????????????? | | ?????????????????????????????????????????????????? | | ?????????????????????????????????????????????????? | | ?????????????????????????????????????????????????? | | ?????????????????????????????????????????????????? | | ?????????????????????????????????????????????????? | | ?????????????????????????????????????????????????? | | ?????????????????????????????????????????????????? | | ?????????????????????????????????????????????????? | +----------------------------------------------------+ Best States ------------- Heat Dissipation 25 Energy Generation 15 Energy Capacity 250 Matter Stores 300 Matter Capacity 300 Sight Range 21 Terrain Scan Density 10 Evasion (%) 55 Recoil Reduction 2 Item Schematics ----------------- None Robot Schematics ------------------ None Fabricated ------------ Nothing Alien Tech Used ----------------- None Achievements -------------- None Challenges ------------ None Game ------ Seed ServoAutogunWings Manual? 0 Play Time 00:12:17 Cumulative 57.3 hours Start 2024.04.12 @ 10:05:34 End 2024.04.12 @ 10:15:15 Sessions 1 Manual Loads 0 Difficulty Rogue Special Mode None Game No. 28 Rogue 28 Adventurer 0 Explorer 0 Win Type - Total 1 Types 1/0/0/0/0/0/0/0/0 Lore% 30 Gallery% 49 Achievement% 37 Wizard Run 0 Options --------- Layout 1 ASCII 0 Keyboard 0 Movement Mouse Keybinds 0 Fullscreen 2 Font 24/Smallcaps Map View 50x35 Zoom Use 0% Tactical HUD 1 Map Filters NONE Filters NONE Steam 1 RUN: 068fd921-fff9-4459-9353-fb07c51e4e14